bitfinex-derivatives/quotes_ETHF0:USTF0_20250810
["timestamp","ask_amount","ask_price","bid_price","bid_amount"]
[1754816893829,1.1422,4214.5,4214.4,1.35253]
[1754816894031,1.587,4214.7,4214.6,1.1706]
[1754816894229,1.587,4214.7,4214.6,1.3525]
[1754816895040,1.587,4214.7,4214.6,0.6236]
[1754816896036,1.587,4214.2,4214.1,3.2078]
[1754816896437,1.587,4214.2,4214.1,3.8314]
[1754816897235,1.587,4214.2,4214.1,4.0858]
[1754816898439,2.06155,4214.2,4214.1,3.3897]
[1754816898831,1.587,4214.2,4214.1,3.8314]
[1754816900143,1.587,4214.2,4214.1,0.6236]
[1754816903343,1.587,4214.2,4213.6,3.2078]
[1754816903536,0.6283,4213.7,4213.6,0.1819]
[1754816903735,0.6283,4213.7,4213.6,1.09822]
[1754816903939,0.6283,4214.3,4214.2,0.878]
[1754816904138,1.1422,4214.3,4214.2,0.878]
[1754816904342,4.5194,4214.8,4214.7,0.878]
[1754816905050,3.2078,4214.8,4214.7,0.878]
[1754816905346,3.2078,4214.8,4214.2,4.39416]
[1754816905347,1.587,4215.1,4215.0,0.878]
[1754816905541,1.587,4215.1,4215.0,0.6236]
[1754816906139,1.3116,4215.1,4215.0,0.878]
[1754816906344,1.587,4215.1,4215.0,0.878]
[1754816907943,0.5502075,4215.4,4215.3,0.878]
[1754816908143,3.2078,4215.5,4215.3,0.6236]
[1754816908346,0.2776,4215.7,4215.4,1.35241]
[1754816908546,0.8646,4215.6,4215.5,0.878]
[1754816908747,1.3116,4215.6,4215.5,0.878]
[1754816909345,1.587,4215.6,4215.5,0.878]
[1754816913150,0.2776,4215.6,4215.5,0.878]
[1754816913348,3.2078,4216.0,4215.9,0.5261]
[1754816913546,3.2078,4216.0,4215.9,0.878]
[1754816913748,4.03583206,4216.5,4216.4,0.17]
[1754816913947,3.4854,4216.5,4216.4,0.878]
[1754816914146,4.35,4216.5,4216.4,0.878]
[1754816914555,4.7948,4216.5,4216.4,0.878]
[1754816915555,3.2078,4216.5,4216.4,0.878]
[1754816916454,4.7518,4216.5,4216.4,0.878]
[1754816917450,4.4925,4216.5,4216.4,0.878]
[1754816917851,1.2847,4216.5,4216.4,0.878]
[1754816918054,1.544,4216.5,4216.4,0.878]
[1754816918253,0.4325,4216.1,4216.0,0.6336]
[1754816918552,1.1013,4216.1,4216.0,0.9101]
[1754816918956,1.3606,4216.1,4216.0,0.9101]
[1754816919153,1.544,4216.1,4216.0,0.9101]
[1754816920351,1.1013,4216.1,4216.0,0.9101]
[1754816922654,1.57563,4216.1,4216.0,1.38445]
[1754816922860,1.1013,4216.1,4216.0,1.38445]
[1754816923052,1.544,4216.1,4216.0,0.9101]
[1754816923454,2.01833,4216.1,4216.0,0.9101]
[1754816923762,1.544,4215.9,4215.8,3.8414]
[1754816924149,1.544,4215.3,4215.2,3.8414]
[1754816924353,1.18574,4216.5,4215.7,0.2765]
[1754816924354,0.54853716,4216.5,4215.7,0.2765]
[1754816924552,1.1013,4215.9,4215.8,1.38447]
[1754816925857,0.73364,4216.1,4216.0,1.38444]
[1754816925858,1.1013,4216.1,4216.0,1.38444]
[1754816926055,1.2847,4216.1,4216.0,1.38444]
[1754816926254,1.544,4216.1,4216.0,1.38444]
[1754816928258,0.54853716,4216.5,4216.4,0.4743]
[1754816928565,1.544,4216.5,4216.4,0.3724]
[1754816929058,1.544,4216.5,4216.4,0.9101]
[1754816929261,0.2618,4216.4,4216.3,0.47431]
[1754816929459,1.544,4216.3,4216.2,1.19852]
[1754816929652,1.544,4216.3,4216.2,1.38442]
[1754816930459,1.544,4216.3,4216.2,0.9101]
[1754816930664,1.544,4216.3,4216.2,0.6336]
[1754816930861,1.544,4215.8,4215.7,3.8414]
[1754816931062,1.544,4215.8,4215.7,4.31577]
[1754816932060,1.2847,4215.8,4215.7,4.31577]
[1754816932261,0.54853716,4216.3,4216.2,0.9101]
[1754816932568,1.1013,4216.5,4216.4,0.9101]
[1754816932864,1.2847,4216.5,4215.7,3.2078]
[1754816933066,0.4325,4216.1,4216.0,1.38445]
[1754816933258,0.4325,4216.4,4216.3,1.19851]
[1754816933462,1.1013,4216.4,4216.3,1.38441]
[1754816933663,1.544,4216.4,4216.3,1.38441]
[1754816935770,1.544,4216.4,4216.3,1.10791]
[1754816936467,0.4325,4216.1,4216.0,0.92205]
[1754816936667,1.544,4216.1,4216.0,1.38445]
[1754816938269,1.2847,4216.1,4216.0,1.38445]
[1754816939673,1.544,4216.1,4216.0,1.38445]
[1754816943976,1.544,4216.1,4216.0,0.6336]
[1754816944177,0.6159,4215.8,4215.7,3.2078]
[1754816944366,1.2822,4215.8,4215.7,3.2078]
[1754816944564,1.544,4215.8,4215.7,3.2078]
[1754816945073,1.544,4215.8,4215.7,3.8414]
[1754816946373,7.1013,4215.8,4215.7,3.2078]
[1754816946572,0.6387,4215.4,4215.3,1.08952]
[1754816946872,0.6387,4215.4,4215.3,1.36472]
[1754816947270,1.5635,4215.4,4215.3,1.36472]
[1754816947973,0.4588,4215.4,4215.3,1.36472]
[1754816948272,1.5635,4215.4,4215.3,1.36472]
[1754816948473,1.5635,4215.4,4215.3,1.08952]
[1754816948676,1.5635,4215.4,4215.3,0.82842]
[1754816948974,1.5635,4215.4,4215.3,1.08952]
[1754816949977,1.5635,4215.4,4215.3,1.36472]
[1754816953574,1.3047,4215.4,4215.3,1.36472]
[1754816953773,1.1248,4215.4,4215.3,1.36472]
[1754816953973,1.3047,4215.4,4215.3,1.36472]
[1754816954181,1.5635,4215.4,4215.3,1.36472]
[1754816955676,1.5635,4215.4,4215.3,1.08952]
[1754816956082,1.5635,4215.4,4215.3,1.36472]
[1754816960185,1.3047,4215.4,4215.3,1.36472]
[1754816960372,1.1248,4215.4,4215.3,1.36472]
[1754816960778,1.5635,4215.4,4215.3,1.36472]
[1754816964885,1.11312,4215.3,4215.2,0.47443]
[1754816965085,2.03792,4215.3,4215.2,0.47443]
[1754816965281,2.03792,4215.3,4215.2,1.08953]
[1754816965486,2.03792,4215.3,4215.2,0.6151]
[1754816965682,2.03792,4215.3,4215.1,3.2078]
[1754816965881,0.9248,4215.2,4215.1,3.6435]
[1754816966188,1.5635,4215.2,4215.1,3.3824]
[1754816966376,1.5635,4215.2,4215.1,3.6435]
[1754816966687,1.5635,4215.2,4215.1,4.0981]
[1754816968990,1.1248,4215.2,4215.1,4.0981]
[1754816969187,0.2765,4215.2,4215.1,4.0981]
[1754816969686,1.5635,4215.5,4215.4,0.8903]
[1754816970088,0.2765,4215.5,4215.4,0.8903]
[1754816970291,2.58935512,4216.0,4215.9,0.8903]
[1754816970687,2.03784,4216.0,4215.9,0.4357]
[1754816970891,1.11307,4215.8,4215.7,0.354]
[1754816971090,2.03787,4215.8,4215.7,0.6151]
[1754816971488,1.5635,4215.8,4215.7,1.08948]
[1754816971889,1.5635,4215.8,4215.7,1.36468]
[1754816973292,0.55145332,4216.7,4215.7,0.8903]
[1754816973596,0.9425,4216.4,4216.3,0.8903]
[1754816973989,1.1248,4216.4,4216.3,0.8903]
[1754816974293,1.5635,4216.4,4216.3,4.0981]
[1754816975793,1.5635,4216.4,4216.3,3.8229]
[1754816980698,1.5635,4216.4,4216.3,3.2078]
[1754816981386,2.0378,4216.4,4216.3,3.2078]
[1754816981590,2.0378,4216.4,4216.3,2.7863]
[1754816985595,1.5565,4216.1,4216.0,0.276]
[1754816986489,0.47437,4215.8,4215.7,0.4051]
[1754816986694,0.47437,4215.8,4215.4,1.51051]
[1754816986695,1.5565,4215.5,4215.4,1.51051]
[1754816986896,0.6163,4215.5,4215.4,0.5793]
[1754816987098,0.6163,4215.5,4215.4,1.3121]
[1754816987495,1.5565,4215.5,4215.4,1.3121]
[1754816987698,1.5565,4215.5,4215.4,1.5868]
[1754816988093,1.5565,4215.1,4215.0,3.5602]
[1754816988299,1.5565,4215.1,4215.0,3.2078]
[1754816989096,1.5565,4214.7,4214.6,1.0361]
[1754816989306,1.5565,4214.7,4214.6,1.3108]
[1754816989498,1.5565,4214.7,4214.6,1.5868]
[1754816990198,1.3032,4214.7,4214.6,1.5868]
[1754816990893,22.1594,4215.3,4215.2,0.631]
[1754816991099,0.723,4215.3,4215.2,1.5868]
[1754816991605,1.16687459,4215.7,4215.6,1.5868]
[1754816991795,0.4444,4215.7,4215.6,1.5868]
[1754816992201,1.5565,4215.7,4215.6,1.5868]
[1754816992701,1.3032,4215.7,4215.6,1.5868]
[1754816995197,1.3032,4215.7,4215.6,0.3524]
[1754816995198,0.8527,4215.7,4215.6,0.3524]
[1754816995403,0.6163,4215.7,4215.6,1.0335]
[1754816995602,0.6163,4215.7,4215.6,0.6284]
[1754816995801,1.3032,4215.7,4215.6,0.6284]
[1754816996004,0.6163,4215.4,4215.1,0.75043]
[1754816996197,1.5565,4215.2,4215.1,1.38143]
[1754816996502,1.5565,4215.2,4215.1,2.06123]
[1754816997001,1.5565,4215.2,4215.1,1.5868]
[1754816998007,1.5565,4215.2,4215.1,0.6284]
[1754816998709,1.5565,4215.2,4215.1,1.5868]
[1754816998898,0.4444,4215.5,4215.4,0.47441]
[1754816999096,0.4482,4215.5,4215.4,2.06121]
[1754816999301,0.723,4215.7,4215.6,1.10538]
[1754816999706,21.716,4215.9,4215.6,1.10538]
[1754816999905,21.716,4215.9,4215.8,1.5868]
[1754817000298,21.8856,4215.9,4215.8,1.5868]
[1754817000503,22.8473,4215.9,4215.8,1.5868]
[1754817001810,3.2078,4216.3,4216.2,0.47432]
[1754817002111,3.2078,4216.3,4216.2,2.06112]
[1754817002407,4.3391,4216.3,4216.2,2.06112]
[1754817002711,1.5565,4216.3,4216.2,2.06112]
[1754817003007,1.5565,4216.3,4216.2,1.5868]
[1754817003209,0.6163,4215.9,4215.8,1.51046]
[1754817003515,1.3032,4216.2,4216.1,1.78513]
[1754817003817,1.3032,4216.2,4216.1,2.06113]
[1754817004020,0.47427,4216.7,4216.4,0.4743]
[1754817004207,4.7643,4216.9,4216.8,1.3121]
[1754817004416,3.6522,4216.9,4216.8,1.5868]
[1754817004617,3.9308,4216.9,4216.8,1.5868]
[1754817005313,4.7863,4216.9,4216.8,1.5868]
[1754817005918,1.5785,4216.9,4216.8,1.5868]
[1754817007515,21.713,4217.2,4216.9,0.4124]
[1754817007717,3.6467,4217.4,4217.3,1.5725]
[1754817008321,4.3271,4217.4,4217.3,1.5725]
[1754817009421,4.7723,4217.4,4217.3,1.5725]
[1754817010115,4.7723,4217.4,4217.3,1.3127]
[1754817010510,4.497,4217.4,4217.3,1.3127]
[1754817010714,4.7723,4217.4,4217.3,1.5725]
[1754817014418,4.7723,4217.4,4217.3,1.3127]
[1754817014617,4.7723,4217.4,4217.3,0.6353]
[1754817015025,0.6088,4216.8,4216.7,0.83336]
[1754817015215,1.5645,4216.8,4216.7,1.77056]
[1754817015625,1.5645,4216.8,4216.7,2.04676]
[1754817015824,1.5645,4216.8,4216.7,1.3127]
[1754817016025,1.5645,4216.8,4216.7,0.6353]
[1754817016222,1.3917,4216.6,4216.5,0.3591]
[1754817016425,0.6088,4216.6,4216.5,0.6353]
[1754817016623,0.6088,4216.6,4216.5,1.0477]
[1754817017122,1.5645,4216.6,4216.5,1.0477]
[1754817017324,1.5645,4216.6,4216.5,1.3127]
[1754817017725,2.03878,4216.6,4216.3,0.47431]
[1754817017922,1.5645,4216.5,4216.4,1.0477]
[1754817018121,1.5645,4216.2,4216.1,3.2078]
[1754817018530,1.5645,4216.2,4216.1,3.484]
[1754817018728,1.5645,4216.2,4216.1,3.8431]
[1754817018928,1.5645,4216.2,4216.1,4.2555]
[1754817019130,0.4743,4216.4,4216.1,5.25462]
[1754817019332,0.8841,4216.4,4216.3,1.5725]
[1754817019632,0.8841,4216.4,4216.3,1.3127]
[1754817019833,1.5645,4216.4,4216.3,1.3127]
[1754817021430,1.5645,4216.4,4216.3,1.5725]
[1754817021624,0.7091,4216.4,4216.3,1.5725]
[1754817021826,1.1193,4216.4,4216.3,1.5725]
[1754817022023,1.5645,4216.4,4216.3,1.5725]
[1754817022232,1.5645,4216.4,4216.3,1.3127]
[1754817022432,1.5645,4216.4,4216.3,0.6353]
[1754817022729,1.5645,4216.4,4216.1,3.68213]
[1754817022932,1.5645,4216.2,4216.1,4.97843]
[1754817023428,0.98801953,4216.6,4216.5,1.78699]
[1754817023631,0.81931953,4216.6,4216.5,2.04679]
[1754817023823,0.2702,4216.6,4216.5,2.04679]
[1754817024025,21.8758,4217.1,4216.8,0.47425]
[1754817024328,22.4121,4217.1,4217.0,0.6241]
[1754817024625,21.703,4217.1,4217.0,1.5725]
[1754817025031,21.9732,4217.1,4217.0,1.5725]
[1754817025333,22.8223,4217.1,4217.0,1.5725]
[1754817026134,23.2675,4217.1,4217.0,1.5725]
[1754817026435,23.2675,4217.1,4217.0,1.3127]
[1754817026633,23.2675,4217.1,4217.0,0.6353]
[1754817026829,0.6088,4216.8,4216.7,1.5725]
[1754817027129,1.5645,4216.4,4216.3,2.04681]
[1754817027432,1.5645,4216.4,4216.1,3.2078]
[1754817027433,22.3118,4217.1,4217.0,1.3127]
[1754817027738,22.3118,4217.1,4217.0,1.5725]
[1754817027934,22.9922,4217.1,4217.0,1.5725]
[1754817028333,23.2675,4217.1,4217.0,1.5725]
[1754817028728,22.9922,4217.1,4217.0,1.5725]
[1754817029436,21.8758,4217.1,4217.0,1.5725]
[1754817029629,3.618,4217.5,4217.3,0.4742]
[1754817029834,21.8738,4217.4,4217.3,1.3581]
[1754817030034,3.618,4217.5,4217.3,1.3581]
[1754817030332,3.618,4217.5,4217.4,1.5725]
[1754817030533,0.6804,4217.5,4217.4,1.5725]
[1754817030731,0.8532,4217.5,4217.4,1.5725]
[1754817030925,1.1193,4217.5,4217.4,1.5725]
[1754817031730,1.5645,4217.5,4217.4,1.5725]
[1754817033142,1.5645,4217.5,4217.4,0.6353]
[1754817034131,0.47419,4217.4,4217.0,0.47422]
[1754817034331,1.5645,4217.3,4217.2,1.24571]
[1754817034526,1.5645,4217.3,4217.2,1.77051]
[1754817034527,1.2892,4217.3,4217.2,1.77051]
[1754817034932,1.2892,4217.3,4217.2,2.04671]
[1754817037335,1.5528,4217.3,4217.2,1.5725]
[1754817041444,1.1193,4217.3,4217.2,1.5725]
[1754817041835,1.3829,4217.3,4217.2,1.5725]
[1754817042036,1.558,4217.3,4217.2,1.5725]
[1754817043638,1.5613,4217.0,4216.9,1.11244]
[1754817043842,1.5613,4217.0,4216.9,1.47344]
[1754817044044,1.5613,4217.0,4216.9,0.9992]
[1754817044234,1.5613,4217.0,4216.9,1.2673]
[1754817044542,1.5613,4217.0,4216.9,1.5234]
[1754817046943,1.2977,4217.0,4216.9,1.5234]
[1754817047846,0.7207,4217.0,4216.9,1.5234]
[1754817049650,1.1226,4217.0,4216.9,1.5234]
[1754817051646,0.2796,4218.0,4217.1,0.8943]
[1754817051850,1.1226,4218.0,4217.9,4.7312]
[1754817052151,1.2977,4218.0,4217.9,4.7312]
[1754817052347,1.5613,4218.0,4217.9,4.7312]
[1754817053751,1.9205263,4218.5,4218.4,1.1433]
[1754817053940,2.03537,4218.5,4218.4,1.5234]
[1754817054854,2.03537,4218.5,4218.4,1.2673]
[1754817056341,1.5613,4218.5,4218.4,1.2673]
[1754817056545,0.8958,4218.5,4218.4,1.5234]
[1754817056754,1.2977,4218.5,4218.4,1.5234]
[1754817056948,1.5613,4218.5,4218.4,1.5234]
[1754817058839,1.56538522,4218.5,4218.4,1.5234]
[1754817059256,0.44518522,4218.5,4218.4,1.5234]
[1754817059549,0.00408522,4218.5,4218.4,1.5234]
[1754817061947,0.00408522,4218.5,4218.4,4.7312]
[1754817062142,0.2796,4219.5,4218.4,4.7312]
[1754817062143,0.7207,4219.5,4219.4,1.74126]
[1754817062346,0.7207,4219.5,4219.4,1.99736]
[1754817062949,1.1226,4219.5,4219.4,1.99736]
[1754817063143,1.2977,4219.5,4219.4,1.99736]
[1754817063349,1.5613,4219.5,4219.4,0.6191]
[1754817063549,1.5613,4219.4,4219.3,1.21507]
[1754817063744,1.5613,4219.4,4219.3,1.48317]
[1754817064048,1.5613,4219.4,4219.3,1.73927]
[1754817064250,1.5613,4219.4,4219.3,1.99737]
[1754817064646,1.16534696,4219.8,4219.7,0.6291]
[1754817064847,0.6162,4219.8,4219.7,1.5234]
[1754817065452,0.6162,4219.8,4219.7,1.2673]
[1754817065453,1.5374,4219.8,4219.7,1.2673]
[1754817065855,2.08654696,4219.8,4219.7,1.2673]
[1754817066355,0.6473,4219.6,4219.4,0.47396]
[1754817066655,1.5685,4219.5,4219.4,1.09326]
[1754817066845,1.5685,4219.5,4219.4,0.6193]
[1754817067149,1.5685,4219.5,4219.4,1.0051]
[1754817068355,1.5685,4219.5,4219.4,1.2714]
[1754817068556,1.3058,4219.5,4219.4,1.5447]
[1754817069055,1.5685,4219.8,4219.7,0.6142]
[1754817069255,1.5685,4219.8,4219.7,1.5447]
[1754817071553,1.5685,4219.8,4219.7,1.74533]
[1754817071762,1.5685,4219.8,4219.7,0.92063]
[1754817071960,1.5685,4219.8,4219.7,0.47393]
[1754817072256,1.5685,4219.8,4219.7,1.74533]
[1754817072459,1.5685,4219.8,4219.7,2.01863]
[1754817073260,1.5685,4219.8,4219.7,1.74533]
[1754817073456,0.6473,4219.6,4219.5,3.2078]
[1754817073661,1.5685,4219.6,4219.5,3.68175]
[1754817073862,1.5685,4219.6,4219.5,3.2078]
[1754817074162,2.04244,4219.6,4219.5,3.2078]
[1754817074453,2.04244,4219.6,4219.5,4.30105]
[1754817074454,1.5685,4219.6,4219.5,4.30105]
[1754817074660,1.5685,4219.6,4219.5,5.22645]
[1754817075362,1.3058,4219.6,4219.5,5.22645]
[1754817075764,1.1189,4219.6,4219.5,5.22645]
[1754817076652,0.4739,4220.0,4219.7,0.47392]
[1754817076857,1.2927,4219.8,4219.7,1.74532]
[1754817077058,1.5685,4219.8,4219.7,2.01862]
[1754817077660,0.6585,4220.3,4219.5,4.1383]
[1754817077963,21.674,4220.4,4219.6,1.08814]
[1754817077964,0.4604,4219.7,4219.6,1.08814]
[1754817078366,0.4604,4219.7,4219.6,2.01864]
[1754817079466,0.7362,4219.7,4219.6,2.01864]
[1754817079668,3.2078,4222.3,4221.3,2.01845]
[1754817079866,0.6585,4222.1,4222.0,0.9305]
[1754817080062,1.3058,4222.1,4222.0,1.5447]
[1754817080258,1.3058,4222.1,4222.0,0.6193]
[1754817080457,0.6585,4221.8,4221.0,3.2078]
[1754817080661,1.3058,4221.1,4221.0,3.2078]
[1754817080967,0.7362,4221.6,4221.5,1.5447]
[1754817081266,0.3827,4221.9,4221.6,0.47371]
[1754817081473,1.1189,4221.9,4221.8,1.5447]
[1754817081769,0.7362,4221.9,4221.8,1.5447]
[1754817081972,1.5685,4221.9,4221.5,3.68152]
[1754817082288,0.4604,4221.6,4221.5,4.7525]
[1754817082490,0.47365,4222.2,4221.7,1.08789]
[1754817082674,1.1189,4222.0,4221.9,0.6142]
[1754817082874,1.1189,4222.0,4221.9,1.5447]
[1754817083187,1.5685,4222.0,4221.9,1.2714]
[1754817083387,0.6473,4221.7,4221.6,0.6193]
[1754817083581,0.9212,4221.6,4221.5,3.2078]
[1754817083888,1.5685,4221.5,4221.4,4.2129]
[1754817084181,1.5685,4221.5,4221.4,3.2078]
[1754817084976,1.5685,4221.5,4221.1,0.74516]
[1754817085179,1.5685,4221.4,4221.3,0.1753]
[1754817085583,0.47369,4221.8,4220.9,3.2078]
[1754817085584,1.5685,4221.0,4220.9,3.2078]
[1754817086695,2.04228,4221.0,4220.9,3.2078]
[1754817087280,0.47384,4220.5,4220.4,3.2078]
[1754817087492,1.5685,4220.5,4220.4,3.2078]
[1754817087792,1.5685,4220.5,4220.4,3.3831]
[1754817087985,1.5685,4220.5,4220.4,4.0934]
[1754817088287,1.5685,4220.5,4220.4,4.4792]
[1754817088490,1.5685,4220.5,4220.4,4.7525]
[1754817089288,0.2758,4220.9,4220.4,3.8669]
[1754817089478,0.73435045,4221.5,4221.4,0.1753]
[1754817089680,0.9231,4221.5,4221.4,1.2714]
[1754817090187,1.5685,4221.5,4221.4,1.2714]
[1754817090582,1.5685,4221.5,4221.4,0.4416]
[1754817092491,4.3267,4221.6,4221.5,2.01842]
[1754817092690,4.5136,4221.6,4221.5,2.01842]
[1754817092889,1.3058,4221.8,4221.7,1.0879]
[1754817093087,1.3058,4221.8,4221.7,2.0184]
[1754817093288,0.1857,4221.8,4221.7,2.0184]
[1754817093491,3.2078,4222.1,4222.0,2.01837]
[1754817093880,0.9231,4222.4,4222.3,1.08783]
[1754817094086,1.3058,4222.4,4222.3,2.01833]
[1754817094486,1.5685,4222.4,4222.3,0.8856]
[1754817094692,1.5685,4222.0,4221.9,0.82158]
[1754817094892,1.5685,4222.0,4221.9,1.35928]
[1754817095792,0.4604,4222.0,4221.9,2.02538]
[1754817095982,0.1857,4222.0,4221.9,2.02538]
[1754817096387,1.3148,4222.3,4222.2,2.00934]
[1754817096589,1.5732,4222.3,4222.2,2.00934]
[1754817097188,0.47359,4222.7,4222.4,0.47362]
[1754817097394,1.5732,4222.5,4222.4,2.00932]
[1754817098094,1.5732,4222.5,4222.4,1.74552]
[1754817098095,1.3148,4222.5,4222.4,1.74552]
[1754817098394,1.5732,4222.0,4221.9,2.00938]
[1754817099590,0.1792,4222.0,4221.9,2.00938]
[1754817099794,0.6847,4222.3,4222.2,1.08214]
[1754817099795,1.3148,4222.3,4222.2,1.08214]
[1754817100192,1.5732,4222.3,4222.2,2.00934]
[1754817100388,0.1792,4222.3,4222.2,2.00934]
[1754817100584,0.9013,4222.3,4222.2,2.00934]
[1754817100883,1.5732,4222.3,4222.2,2.00934]
[1754817101485,1.5732,4222.3,4222.2,1.74554]
[1754817101687,0.2712,4222.3,4222.2,2.00934]
[1754817101888,1.302,4222.7,4222.6,0.6085]
[1754817102088,1.5732,4222.7,4222.6,1.2719]
[1754817102285,1.5732,4222.7,4222.6,0.8696]
[1754817102888,1.5732,4222.7,4222.6,1.2719]
[1754817103694,1.5732,4222.6,4222.5,0.65471]
[1754817103894,1.5732,4222.6,4222.5,1.34321]
[1754817104096,1.5732,4222.6,4222.5,1.74551]
[1754817104993,1.5732,4222.6,4222.4,0.47362]
[1754817105196,1.5732,4222.5,4222.4,0.47362]
[1754817105597,1.5732,4222.5,4222.1,0.2611]
[1754817105897,1.5732,4221.9,4221.8,4.28999]
[1754817106393,1.4016,4221.9,4221.8,2.00939]
[1754817106595,1.1432,4221.9,4221.8,2.00939]
[1754817106898,0.8639,4221.9,4221.8,2.00939]
[1754817108299,1.5732,4221.9,4221.8,2.00939]
[1754817108898,1.5732,4221.9,4221.8,1.5357]
[1754817109102,0.6847,4221.9,4221.8,1.5357]
[1754817110498,0.2712,4221.9,4221.8,1.5357]
[1754817111102,0.4504,4221.9,4221.8,1.5357]
[1754817111604,1.02287981,4222.2,4221.9,0.47368]
[1754817111805,0.92455,4222.2,4222.1,0.6085]
[1754817112006,0.6301,4222.2,4222.1,1.5357]
[1754817112504,1.3148,4222.2,4222.1,1.5357]
[1754817112706,1.86402981,4222.2,4222.1,1.5357]
[1754817113410,1.3148,4222.2,4222.1,1.5357]
[1754817113607,0.7297,4222.2,4222.1,1.5357]
[1754817113803,1.51721,4222.6,4222.5,0.6085]
[1754817114108,2.04681,4222.6,4222.5,1.2719]
[1754817114498,1.61681,4222.6,4222.5,0.6085]
[1754817114702,2.04681,4222.6,4222.5,1.2719]
[1754817117003,2.04681,4222.6,4222.5,0.8696]
[1754817117207,2.04683,4222.3,4222.2,1.2719]
[1754817117506,2.04683,4222.3,4222.2,1.5357]
[1754817118107,1.5732,4222.3,4222.2,1.5357]
[1754817119004,2.04683,4222.3,4221.9,0.47368]
[1754817119202,1.1597,4222.0,4221.9,1.34328]
[1754817119408,1.5732,4222.0,4221.9,0.8696]
[1754817119706,1.5732,4222.0,4221.9,1.5357]
[1754817120307,2.04687,4222.0,4221.9,1.5357]
[1754817120505,2.04687,4222.0,4221.9,0.6085]
[1754817120708,2.04687,4222.0,4221.9,1.5357]
[1754817121503,0.4737,4221.7,4221.6,0.3497]
[1754817121702,0.6301,4221.4,4221.3,1.34334]
[1754817121907,0.6301,4221.4,4221.3,1.74564]
[1754817122102,1.5732,4221.4,4221.3,1.74564]
[1754817122907,0.1792,4220.9,4220.8,4.89692515]
[1754817123209,1.3148,4220.9,4220.8,6.24302515]
[1754817123406,1.5732,4220.9,4220.8,6.24302515]
[1754817123606,1.5732,4220.9,4220.8,6.90642515]
[1754817124209,1.5732,4220.9,4220.8,5.2173]
[1754817125712,0.9013,4220.9,4220.8,3.2078]
[1754817125907,1.5768,4220.9,4220.8,4.7716]
[1754817126112,1.5768,4220.9,4220.8,3.3784]
[1754817126300,1.5768,4220.9,4220.8,3.9123]
[1754817126611,1.5768,4220.9,4220.8,4.4935]
[1754817127207,1.5768,4220.9,4220.8,4.7716]
[1754817127906,1.5768,4220.9,4220.8,4.4935]
[1754817128307,1.5768,4220.9,4220.8,4.084]
[1754817129004,1.5768,4220.9,4220.8,4.4935]
[1754817130314,1.5712,4221.2,4221.1,1.2857]
[1754817130702,1.5712,4221.2,4220.9,0.47379]
[1754817130911,0.6258,4221.0,4220.9,1.32189]
[1754817131212,1.5712,4221.0,4220.9,1.75949]
[1754817131413,1.5712,4221.0,4220.9,2.03759]
[1754817133110,0.4558,4221.0,4220.9,2.03759]
[1754817133409,0.4558,4221.0,4220.8,3.2078]
[1754817133410,0.6258,4221.3,4221.2,1.0177]
[1754817133606,0.3718,4220.9,4220.8,4.2898]
[1754817133803,1.5712,4220.9,4220.8,4.6993]
[1754817134005,1.5712,4220.9,4220.8,4.4935]
[1754817134209,1.5712,4220.9,4220.8,3.9123]
[1754817134608,0.4558,4220.9,4220.8,4.084]
[1754817134813,0.8957,4221.3,4221.2,1.08195]
[1754817135110,1.5712,4221.3,4221.2,1.75945]
[1754817135914,1.5712,4221.3,4221.2,2.03755]
[1754817136111,1.5712,4221.3,4221.2,0.47375]
[1754817136411,0.4558,4221.4,4221.3,1.5638]
[1754817136611,1.5712,4221.7,4221.6,1.5638]
[1754817137315,0.7098,4221.7,4221.6,1.5638]
[1754817138310,3.2078,4221.8,4221.7,0.4737]
[1754817138514,3.2078,4221.8,4221.7,2.0375]
[1754817138712,3.6636,4221.8,4221.7,2.0375]
[1754817138916,1.1273,4221.8,4221.7,2.0375]
[1754817139514,1.3132,4221.8,4221.7,1.5638]
[1754817139716,1.5712,4221.8,4221.7,1.5638]
[1754817140916,1.3132,4221.8,4221.7,1.5638]
[1754817142716,0.1859,4222.1,4222.0,2.03747]
[1754817143021,4.521,4222.4,4222.3,1.08183]
[1754817143315,4.779,4222.4,4222.3,2.03743]
[1754817143523,1.5712,4222.4,4222.3,2.03743]
[1754817144518,1.5712,4222.4,4222.3,0.47363]
[1754817144818,0.2699,4222.3,4222.1,0.47365]
[1754817145022,0.6258,4222.2,4222.1,0.47365]
[1754817145218,1.5712,4222.2,4222.1,0.47365]
[1754817145417,1.5712,4222.2,4222.1,1.75935]
[1754817145618,1.5712,4222.2,4222.1,2.03745]
[1754817146517,1.5712,4222.2,4222.1,1.75935]
[1754817146722,1.5712,4222.2,4222.1,0.1706]
[1754817147421,1.5712,4222.2,4222.1,1.2857]
[1754817147622,1.5712,4222.2,4222.1,1.5638]
[1754817148018,1.5712,4222.5,4222.4,0.47362]
[1754817148618,1.5712,4222.4,4222.3,0.47363]
[1754817149018,0.6258,4222.4,4222.2,0.47364]
[1754817149217,1.5712,4222.3,4222.2,1.75934]
[1754817149418,0.8957,4222.3,4222.2,2.03744]
[1754817149618,1.1273,4222.3,4222.2,2.03744]
[1754817150627,1.5712,4222.3,4222.2,2.03744]